Cogmind - Beta 17 @@@ ROGUE MODE // 2026.06.24 @ 01:31:56 Player: Lilshrinky Result: Destroyed by H-55 Commando with Assault Rifle Performance ------------- Evolutions (2) 1000 Regions Visited (3) 600 Robots Destroyed (18) 90 Value Destroyed (537) 537 Prototype IDs (0) 0 Alien Tech Used (0) 0 Bonus (0) 0 TOTAL SCORE: 2227 Bonus ------- None Cogmind --------- Core Integrity 0/550 Matter 295/300 Energy 100/100 System Corruption 0% Temperature Cool (0) Movement Core (1350) Ox26 Location -8/Materials Parts ------- > --- POWER (2) -------- (None) > --- PROPULSION (2) --- (None) > --- UTILITY (4) ------ Huge Storage Unit > --- WEAPON (3) ------- (None) > --- INVENTORY (25) --- Heat Sink ECM Suite Peak State ------------ > --- POWER ------------ Ion Engine > --- PROPULSION ------- Wheel Armored Wheel > --- UTILITY ---------- Huge Storage Unit Improved Targeting Computer ECM Suite Propulsion Shielding > --- WEAPON ----------- Assault Rifle Light Assault Rifle Light Assault Rifle > --- INVENTORY -------- Heat Sink ECM Suite [Rating: 12] Favorites ----------- Power Ion Engine Engine Ion Engine Propulsion Wheel Wheel Wheel Hover Unit Improved Hover Unit Utility Huge Storage Unit Device ECM Suite Storage Huge Storage Unit Processor Improved Targeting Computer Protection Propulsion Shielding Weapon Assault Rifle Energy Gun EM Pulse Gun Ballistic Gun Assault Rifle Build | -11 -10 -9 -8 ------- Run | Yrd Mat Mat Mat Slots Evolved 4 | . . 2 2 Power 1 | . . . 1 Propulsion . | . . . . Utility 2 | . . 1 1 Weapon 1 | . . 1 . Parts Attached 22 | 6 5 8 3 Power 2 | 1 . 1 . Engine 2 | 1 . 1 . Core . | . . . . Reactor . | . . . . Propulsion 7 | 2 . 3 2 Treads . | . . . . Leg . | . . . . Wheel 5 | 2 . 3 . Hover 2 | . . . 2 Flight . | . . . . Utility 7 | 1 5 1 . Device 1 | . 1 . . Storage 3 | 1 2 . . Processor 2 | . 1 1 . Hackware . | . . . . Protection 1 | . 1 . . Artifact . | . . . . Weapon 6 | 2 . 3 1 Energy Gun 2 | 1 . . 1 Energy Cannon . | . . . . Ballistic Gun 4 | 1 . 3 . Ballistic Cannon . | . . . . Launcher . | . . . . Special Weapon . | . . . . Impact Weapon . | . . . . Slashing Weapon . | . . . . Piercing Weapon . | . . . . Special Melee Weapon . | . . . . Unidentified Prototypes . | . . . . Parts Lost 17 | . . 5 12 Power 2 | . . 1 1 Propulsion 6 | . . 2 4 Utility 3 | . . . 3 Weapon 6 | . . 2 4 Highest Loss Streak 6 | . . 2 6 To Critical Strikes . | . . . . Average Backups 3 | 1 3 3 2 Power . | . 1 . . Propulsion . | . . . . Utility 1 | . 1 1 2 Weapon . | . 1 . . Tool/Special . | . . . . Unused Backups 2 | . . . 2 Power . | . . . . Propulsion . | . . . . Utility 2 | . . . 2 Weapon . | . . . . Tool/Special . | . . . . Average Slot Usage (%) 79 | . 94 89 52 Engine 9 | . 14 10 3 Wheel 17 | . 28 17 10 Device 8 | . 5 11 5 Storage 9 | . 8 10 9 Processor 9 | . 7 11 7 Protection 1 | . 1 . 3 Energy Gun 5 | . 14 3 . Ballistic Gun 18 | . 14 24 11 Peak Build Rating 12 | 6 8 11 12 Average Rating 8 | 4 7 9 7 On Entrance 6 | . 6 8 11 Avg Prop Armor Cover (%) . | . . . . Naked Turns . | . . . . Heaviest Build 92 | 14 90 92 92 Greatest Support 22 | 20 20 22 22 Greatest Overweight (x) 30 | . 4 30 26 Average Overweight (x) 3 | . 1 4 5 Largest Inventory Capacity 25 | 8 25 25 25 Average Capacity 22 | 6 15 24 25 Most Carried 5 | 3 5 5 3 Average Carried 3 | 1 3 3 2 Final Capacity 25 | 8 5 25 25 Final Carried 5 | 2 5 2 2 Class Distribution -------------------- 62% | Mutant 37% | Gunner Dominant Class ---------------- Mutant | -10/Materials Gunner | -9/Materials Mutant | -8/Materials Resources | -11 -10 -9 -8 ----------- Run | Yrd Mat Mat Mat Matter Collected 602 | 185 68 265 84 Remotely . | . . . . Salvage Created 704 | . 68 452 184 Parts 51 | . 6 37 8 Haulers Intercepted . | . . . . Recyclers Shooed . | . . . . Parts Field Recycled . | . . . . Retrieved Matter . | . . . . Parts Self-Destructed . | . . . . Prevented . | . . . . Parts Restored . | . . . . Kills | -11 -10 -9 -8 ------- Run | Yrd Mat Mat Mat Combat Hostiles Destroyed 15 | . 1 11 3 Guns 15 | . 1 11 3 Classes Destroyed 6 | . 2 3 1 Worker 1 | . 1 . . Builder 1 | . . . 1 Tunneler 1 | . . 1 . Swarmer 3 | . . 3 . Grunt 8 | . 1 4 3 Sentry 4 | . . 4 . Best Kill Streak 5 | . 1 5 2 Combat Bots Only 5 | . 1 5 2 Max Kills in Single Turn 2 | . 1 2 1 Gunslinging 1 | . . 1 . Exploded . | . . . . Melee . | . . . . Uniques/NPCs Destroyed . | . . . . Combat | -11 -10 -9 -8 -------- Run | Yrd Mat Mat Mat Hostile Shots Fired 219 | . 3 68 148 Missed 60 | . 1 22 37 Hits 159 | . 2 46 111 Projectile 159 | . 2 46 111 Critical Strikes 5 | . . 2 3 Actively Blocked 1 | . . . 1 Damage Taken 1925 | . 27 564 1334 Core 685 | . 12 112 561 Absorbed by Shields . | . . . . Redirected to Shielding 55 | . . . 55 Core Remaining (%) 89 | 100 95 72 . Volleys Fired 78 | . 5 32 41 Largest 3 | . 2 3 3 Hottest 85 | . 60 80 85 Shots Fired 147 | . 10 76 61 Gun 147 | . 10 76 61 Cannon . | . . . . Launcher . | . . . . Special . | . . . . Kinetic 131 | . 5 71 55 Thermal 6 | . . . 6 Explosive . | . . . . Electromagnetic 10 | . 5 5 . Robot Hit Streak 13 | . 2 13 10 Robot Miss Streak 5 | . 1 4 5 Penetration Max . | . . . . Secondary Targets 4 | . . 4 . Max Gunslinging Chain 1 | . . 1 . Shots Hit Robots 108 | . 5 56 47 Core Hits 42 | . 3 22 17 Critical Kills . | . . . . Critical Parts Destroyed . | . . . . Critical Strikes . | . . . . Melee Attacks . | . . . . Impact . | . . . . Slashing . | . . . . Piercing . | . . . . Sneak Attacks . | . . . . Combat Hostiles . | . . . . Follow-up Attacks . | . . . . Damage Inflicted 1133 | . 72 599 462 Guns 1123 | . 62 599 462 Cannons . | . . . . Explosions . | . . . . Melee . | . . . . Ramming 10 | . 10 . . Kinetic 924 | . . 546 378 Thermal 84 | . . . 84 Explosive . | . . . . Electromagnetic 115 | . 62 53 . Impact . | . . . . Slashing . | . . . . Piercing . | . . . . Highest Corruption . | . . . . Average Corruption . | . . . . Corruption Purged . | . . . . Corruption Blocked . | . . . . Overload Shots . | . . . . Overflow Damage . | . . . . Projectiles . | . . . . Explosions . | . . . . Melee . | . . . . Knockbacks . | . . . . Impact . | . . . . Kinetic . | . . . . Secondary . | . . . . Self-Inflicted Damage 5 | . 5 . . Shots . | . . . . Rammed 1 | . 1 . . Targets Rammed 1 | . 1 . . Kicked . | . . . . Crushed . | . . . . Highest Temperature 52 | . 6 45 52 Average Temperature 14 | . 6 16 13 Received Heat Transfer 573 | . 12 210 351 Siege Activations . | . . . . Martial Activations . | . . . . Shielding Activations . | . . . . Robots Disrupted . | . . . . Combat Hostiles . | . . . . Robots Corrupted . | . . . . Combat Hostiles . | . . . . Parts Fried . | . . . . Impact Corruptions . | . . . . Robots Melted . | . . . . Combat Hostiles . | . . . . Parts Melted 1 | . . . 1 Heat Transferred 185 | . . . 185 Parts Sabotaged . | . . . . Parts Stolen . | . . . . Parts Stripped . | . . . . Power Chain Reactions . | . . . . Alert | -11 -10 -9 -8 ------- Run | Yrd Mat Mat Mat Maximum Alert Level . | . . . . Low Security (%) 100 | 100 100 100 100 Level 1 . | . . . . Level 2 . | . . . . Level 3 . | . . . . Level 4 . | . . . . Level 5 . | . . . . High Security . | . . . . Max Security . | . . . . Peak Influence 115 | . 30 115 41 Initial 41 | . . . 41 Average 18 | . 4 32 8 Influence Increases 385 | . 35 275 75 Destroy 0b10 Robot/C 300 | . 20 220 60 Destroy 0b10 Robot/NC 15 | . 5 5 5 Destroy Leader 70 | . 10 50 10 Influence Decreases 385 | . 35 176 174 Entered New Map 58 | . . . 58 Time Decay 257 | . 35 146 76 Lost Part 70 | . . 30 40 Squads Dispatched 3 | . 3 . . Investigation 2 | . 2 . . Extermination . | . . . . Reinforcement 1 | . 1 . . Assault . | . . . . Garrison . | . . . . Intercept . | . . . . Searches Triggered . | . . . . Construction Impeded . | . . . . Haulers Reinforced . | . . . . Active Scanning Responses . | . . . . Cargo Convoy Interrupts . | . . . . Stealth | -11 -10 -9 -8 --------- Run | Yrd Mat Mat Mat Distress Signals 3 | . . 2 1 Communications Jammed . | . . . . Distress Signals . | . . . . Times Spotted 29 | . 2 13 14 Peak Tracking Total 5 | . 2 4 5 Tactical Retreats 2 | . . 1 1 ECM-based Alert Blocks 3 | . . 2 1 Traps | -11 -10 -9 -8 ------- Run | Yrd Mat Mat Mat Traps Triggered . | . . . . Indirectly . | . . . . Trap Hack Attempts . | . . . . Triggered . | . . . . Disarmed . | . . . . Reprogrammed . | . . . . Reused . | . . . . Traps Extracted . | . . . . Installed . | . . . . Triggered . | . . . . Machines | -11 -10 -9 -8 ---------- Run | Yrd Mat Mat Mat Machines Disabled . | . . . . Max in Single Turn . | . . . . Machines Repaired . | . . . . Machines Dismantled . | . . . . Machines Sabotaged . | . . . . Overloaded Fab Kills . | . . . . Hacking | -11 -10 -9 -8 --------- Run | Yrd Mat Mat Mat Machines Accessed 3 | . 1 2 . Terminals 1 | . 1 . . Fabricators . | . . . . Repair Stations . | . . . . Recycling Units 1 | . . 1 . Scanalyzers 1 | . . 1 . Garrison Access . | . . . . Total Hacks 3 | . 1 2 . Successful 2 | . . 2 . Failed 1 | . 1 . . Catastrophic . | . . . . Database Lockouts . | . . . . Manual . | . . . . Terminals 1 | . 1 . . Fabricators . | . . . . Repair Stations . | . . . . Recycling Units 1 | . . 1 . Scanalyzers 1 | . . 1 . Garrison Access . | . . . . Terminal Hacks . | . . . . Fabricator Hacks . | . . . . Repair Station Hacks . | . . . . Recycling Unit Hacks 1 | . . 1 . Retrieve Matter 1 | . . 1 . Scanalyzer 1 | . . 1 . Retrieve Study 1 | . . 1 . Garrison Access Hacks . | . . . . Unauthorized Hacks . | . . . . Terminals . | . . . . Fabricators . | . . . . Repair Stations . | . . . . Recycling Units . | . . . . Scanalyzers . | . . . . Garrison Access . | . . . . Data Cores Recovered . | . . . . Used . | . . . . Hacking Detections . | . . . . Full Trace Events . | . . . . Feedback Events . | . . . . Feedback Blocked . | . . . . Robot Schematics Acquired . | . . . . Robots Built . | . . . . Authchips . | . . . . Time . | . . . . Total Robot Build Rating . | . . . . Part Schematics Acquired . | . . . . Parts Built . | . . . . Authchips . | . . . . Time . | . . . . Total Part Build Rating . | . . . . Part Studies Acquired 1 | . . 1 . Parts Repaired . | . . . . Time . | . . . . Parts Recycled . | . . . . Recycled Matter . | . . . . Retrieved Matter . | . . . . Retrieved Components . | . . . . Parts Scanalyzed . | . . . . Part Schematics Acquired . | . . . . Parts Damaged . | . . . . Bothacking | -11 -10 -9 -8 ------------ Run | Yrd Mat Mat Mat Used RIF Installer . | . . . . Robots Hacked . | . . . . Non-combat . | . . . . Combat . | . . . . Robot Hacks Applied . | . . . . Relay Couplers Released . | . . . . Fabnet Peak Effective % . | . . . . Robots Rewired . | . . . . Allies Hacked . | . . . . Hacks Repelled . | . . . . Allies | -11 -10 -9 -8 -------- Run | Yrd Mat Mat Mat Total Allies . | . . . . Largest Group . | . . . . Highest-Rated Group . | . . . . Highest-Rated Ally . | . . . . Total Orders . | . . . . Ally Attacks . | . . . . Total Damage . | . . . . Kills . | . . . . Allies Corrupted . | . . . . Allies Melted . | . . . . Intel | -11 -10 -9 -8 ------- Run | Yrd Mat Mat Mat Active Infowar (turns) 862 | . 132 530 200 Optics 130 | . 117 13 . ECM 816 | . 86 530 200 Robot Analysis Total . | . . . . Derelict Logs Recovered . | . . . . Drone Launches . | . . . . Drone Recoveries . | . . . . Exploration | -11 -10 -9 -8 ------------- Run | Yrd Mat Mat Mat Turns Passed 1136 | 49 225 530 332 Spaces Moved 544 | 45 190 228 81 Core 14 | 2 . 5 7 Treads . | . . . . Legs . | . . . . Wheels 528 | 43 190 223 72 Hover 2 | . . . 2 Flight . | . . . . Fastest Speed 50 | 50 80 140 130 Average Speed 152 | 78 100 171 262 Slowest Speed 1550 | 80 140 1550 1350 Overloaded Moves . | . . . . Propulsion Burnouts . | . . . . Robots Hopped . | . . . . Potential Cave-ins . | . . . . Cave-ins Triggered . | . . . . Exploration Rate (%) 19 | 3 39 26 9 Regions Visited 3 Branch Regions . Pre-discovered Areas . | . . . . Known Exits Taken . | . . . . Unknown Exits Taken 3 | 1 1 1 . Scrap Searched . | . . . . Spaces Dug . | . . . . Terrain Destroyed . | . . . . Melee . | . . . . Projectile . | . . . . AOE . | . . . . Terrain Rammed . | . . . . Walls Destroyed . | . . . . Machines Disabled . | . . . . Actions | -11 -10 -9 -8 --------- Run | Yrd Mat Mat Mat Total 746 | 58 216 308 164 Wait 69 | . 5 30 34 Move 541 | 44 189 227 81 Hop . | . . . . Pick Up 25 | 8 7 6 4 Fast Attach . | . . . . Attach 24 | 6 5 9 4 Detach 2 | . 1 1 . Swap 1 | . . 1 . Drop 5 | . 3 2 . Fire 78 | . 5 32 41 Melee . | . . . . Ram 1 | . 1 . . Kick . | . . . . Crush . | . . . . Escape Stasis . | . . . . Rewire . | . . . . Trap . | . . . . Miscellaneous . | . . . . Route ------- -11/Scrapyard -10/Materials -9/Materials -8/Materials History --------- Turn | Location | Event 6 | -11/Scrapyard | Discovered new exit (range 16) 50 | -11/Scrapyard | Entered Materials 51 | -10/Materials | Met a group of wandering Federalists 261 | -10/Materials | Discovered new exit (range 18) 275 | -10/Materials | Entered another Materials area 275 | -9/Materials | Evolved 2 slots: Utility x1, Weapon x1 579 | -9/Materials | Discovered new exit (range 4) 805 | -9/Materials | Entered another Materials area 805 | -8/Materials | Evolved 2 slots: Power x1, Utility x1 976 | -8/Materials | Lost 3 parts (1p2w) 1036 | -8/Materials | Core integrity fell below 50% 1042 | -8/Materials | Lost 6 parts (2n2u2w) 1087 | -8/Materials | Core integrity fell below 20% 1106 | -8/Materials | Lost 3 parts (2n1u) 1137 | -8/Materials | Destroyed by H-55 Commando with Assault Rifle Last Messages --------------- Imp. Targeting Computer destroyed. R-06 Scavenger collects Lgt. Nuclear Core. Acquired Imp. Hover Unit. Slug penetrates Door. Imp. Hover Unit destroyed. Penetrated by Slug. R-06 Scavenger collects Aluminum Leg. U-05 Engineer builds a Wall. R-06 Scavenger collects Visual Processing Unit. U-05 Engineer builds a Door. Slug penetrates Wall. U-05 Engineer builds a Door. Slug penetrates Wall. Wall collapses. U-05 Engineer builds a Wall. Penetrated by Slug. Slug penetrates Processing Tank. Penetrated by Slug. Slug penetrates Door. Penetrated by Slug. Map ----- +----------------------------------------------------+ | ?????????????????????????????????????????????????? | | ?????????????????????????????????????????????????? | | ?????????????????????????????????????????????????? | | ?????????????????????????????????????????????????? | | ?????????????????????????????????????????????????? | | ?????????????????????????????????????????????????? | | ?????????????????????????????????????????????????? | | ?????????????????????????????????????????????????? | | ?????????????????????????????????????????????????? | | ?????????????????????????????????????????????????? | | ????????????????????????? ??? ?????????????????? | | ??????????????????? ????? ?? ?????????????????? | | ???????????????????" ???" "?" ?????????????????? | | ???????????????????" ???" "?" #????????????????? | | ???????????????????" ?"" """ #????????????????? | | ???????????????? """ """ """ #????????????????? | | ???????????????? """ """ """ #????????????????? | | ???????????????? #????????????????? | | ????????? ??? #????????????????? | | ????????? """ """ """ #????????????????? | | ????????? """ """ """ #????????????????? | | ???????? """ h""" """ #?????##########?? | | ???????? "" ""u """ [####### #?? | | ???????" % " """ # """" #?? | | ??????? [% h #% """" #?? | | ??????? h @ # """" #?? | | ??????????????###+######;########## + #?? | | ?????????????????????# % % #?????# # """" #?? | | ?????????????????????# #?????# # """" #?? | | ?????????????????????# #?????# # """" #?? | | ?????????????????????# ! #?????# # #?? | | ?????????????????????# " #?????# ###########? | | ?????????????????????# #?????# # #? | | ?????????????????????########?????# + #? | | ??????????????????????????????????# # """"""" #? | | ??????????????????????????????????# # """"""" #? | | ??????????????????????????????????# # """"""" #? | | ??????????????????????????????????##### """"""" #? | | ??????????????????????????????????????# """"""" #? | | ??????????????????????????????????????# #? | | ??????????????????????????????????????###########? | | ?????????????????????????????????????????????????? | | ?????????????????????????????????????????????????? | | ?????????????????????????????????????????????????? | | | | | | | | | | | | | +----------------------------------------------------+ Best States ------------- Heat Dissipation 31 Energy Generation 10 Energy Capacity 250 Matter Stores 300 Matter Capacity 300 Sight Range 18 Terrain Scan Density 10 ECM Strength 1 Propulsion Shielding 33 Evasion (%) 44 Targeting Accuracy 6 Item Schematics ----------------- None Robot Schematics ------------------ None Fabricated ------------ Nothing Repaired ---------- Nothing Studied --------- Lgt. Assault Rifle | -9/Materials | Hacked Alien Tech Used ----------------- None Achievements -------------- For Emergencies Only Item+ Spot Them First Challenges ------------ None Game ------ Seed PointyHoverClaymores Manual? 0 Play Time 00:14:13 Cumulative 1.3 hours Start 2026.06.24 @ 01:17:11 End 2026.06.24 @ 01:31:56 Sessions 1 Manual Loads 0 Difficulty Rogue Special Mode None Game No. 5 Rogue 5 Adventurer 0 Explorer 0 Win Type - Total 0 Types 0/0/0/0/0/0/0/0/0/0 Lore% 0 Gallery% 4 Achievement% 5 Wizard Run 0 Options --------- Layout 1 ASCII 0 Keyboard 0 Movement Mouse Keybinds 0 Fullscreen 1 Font 24/Smallcaps Map View 50x40 Zoom Use 0% Tactical HUD 0 Map Filters NONE Filters NONE Steam 1 RUN: 0dab5e68-8716-443a-b8be-7090cd53b631